[Event "*** Titled Tuesday 3|2 Blitz"]
[Site "Chess.com"]
[Date "2017.03.07"]
[Round "11"]
[White "Generalas"]
[Black "rpragchess"]
[Result "0-1"]
[WhiteElo "2179"]
[BlackElo "2198"]
[TimeControl "180+2"]
[EndTime "15:38:06 PST"]
[Termination "rpragchess won by resignation"]

1. e4 {[%clk 0:03:02]} 1... c5 {[%clk 0:03:00.1]} 2. c3 {[%clk 0:03:02.3]} 2...
Nf6 {[%clk 0:02:59.8]} 3. e5 {[%clk 0:03:02.7]} 3... Nd5 {[%clk 0:03:01.2]} 4.
d4 {[%clk 0:03:03.5]} 4... cxd4 {[%clk 0:03:01]} 5. cxd4 {[%clk 0:03:03.8]} 5...
Nc6 {[%clk 0:03:02.4]} 6. Nc3 {[%clk 0:03:01.5]} 6... Nxc3 {[%clk 0:03:02.1]} 7.
bxc3 {[%clk 0:03:02]} 7... d5 {[%clk 0:03:03.7]} 8. f4 {[%clk 0:03:02.3]} 8...
g6 {[%clk 0:03:04.6]} 9. Nf3 {[%clk 0:03:03.1]} 9... Bg7 {[%clk 0:03:06.2]} 10.
Bd3 {[%clk 0:03:03.3]} 10... O-O {[%clk 0:03:06.9]} 11. O-O {[%clk 0:03:03.9]}
11... f6 {[%clk 0:03:08.5]} 12. Qe2 {[%clk 0:02:54.8]} 12... fxe5 {[%clk
0:03:05.6]} 13. Nxe5 {[%clk 0:02:51.4]} 13... Nxe5 {[%clk 0:03:01.6]} 14. fxe5
{[%clk 0:02:50.3]} 14... Bf5 {[%clk 0:03:00.6]} 15. Bxf5 {[%clk 0:02:27]} 15...
gxf5 {[%clk 0:03:01.3]} 16. Bg5 {[%clk 0:02:21.2]} 16... Qe8 {[%clk 0:03:00.9]}
17. e6 {[%clk 0:02:15.4]} 17... Qg6 {[%clk 0:03:01.2]} 18. Qe3 {[%clk
0:02:10.5]} 18... h6 {[%clk 0:02:58.9]} 19. Bh4 {[%clk 0:02:01.3]} 19... Kh7
{[%clk 0:02:57.9]} 20. Rae1 {[%clk 0:01:59.1]} 20... Rg8 {[%clk 0:02:58.3]} 21.
Qf3 {[%clk 0:01:51]} 21... f4 {[%clk 0:02:50.2]} 22. Qxd5 {[%clk 0:01:44.6]}
22... Rac8 {[%clk 0:02:43.8]} 23. Bxe7 {[%clk 0:01:21.1]} 23... Rxc3 {[%clk
0:02:42.7]} 24. Qe4 {[%clk 0:01:18.1]} 24... Bxd4+ {[%clk 0:02:41.1]} 25. Kh1
{[%clk 0:01:14.7]} 25... Be3 {[%clk 0:02:39.3]} 26. Qxg6+ {[%clk 0:01:03.6]}
26... Rxg6 {[%clk 0:02:39.5]} 27. Bh4 {[%clk 0:00:58.2]} 27... Rxe6 {[%clk
0:02:38.7]} 28. Rxf4 {[%clk 0:00:58.3]} 28... Bxf4 {[%clk 0:02:38.1]} 29. Rxe6
{[%clk 0:00:58.9]} 29... Rc1+ {[%clk 0:02:29]} 30. Re1 {[%clk 0:00:57.4]} 30...
Rc2 {[%clk 0:02:30.5]} 31. g3 {[%clk 0:00:49.4]} 31... Bd6 {[%clk 0:02:30.5]}
32. Rd1 {[%clk 0:00:45.5]} 32... Bc5 {[%clk 0:02:29.2]} 33. a4 {[%clk
0:00:35.8]} 33... Ra2 {[%clk 0:02:28.1]} 34. Rd7+ {[%clk 0:00:34.6]} 34... Kg6
{[%clk 0:02:27]} 35. Rxb7 {[%clk 0:00:34.9]} 35... Rxa4 {[%clk 0:02:23.3]} 36.
Bd8 {[%clk 0:00:34.9]} 36... Ra2 {[%clk 0:02:22.4]} 37. Rb5 {[%clk 0:00:33.7]}
37... Bd4 {[%clk 0:02:21.5]} 38. Bc7 {[%clk 0:00:34]} 38... a6 {[%clk
0:02:18.6]} 39. Rd5 {[%clk 0:00:33.6]} 39... Ba7 {[%clk 0:02:19.1]} 40. Bf4
{[%clk 0:00:33.5]} 40... h5 {[%clk 0:02:19]} 41. Rg5+ {[%clk 0:00:32.1]} 41...
Kf6 {[%clk 0:02:20.1]} 42. Rxh5 {[%clk 0:00:33.3]} 42... a5 {[%clk 0:02:21.7]}
43. Rh6+ {[%clk 0:00:33.4]} 43... Kf5 {[%clk 0:02:22.2]} 44. Ra6 {[%clk
0:00:33.5]} 44... Bd4 {[%clk 0:02:23]} 45. Rd6 {[%clk 0:00:26.3]} 45... Ke4
{[%clk 0:02:23.3]} 46. Re6+ {[%clk 0:00:24.4]} 46... Kf3 {[%clk 0:02:23.2]} 47.
Re1 {[%clk 0:00:23.8]} 47... a4 {[%clk 0:02:24.5]} 48. Rd1 {[%clk 0:00:23.4]}
48... a3 {[%clk 0:02:22.4]} 49. h4 {[%clk 0:00:16.7]} 49... Bf6 {[%clk
0:02:11.4]} 50. Rd3+ {[%clk 0:00:13.7]} 50... Kf2 {[%clk 0:02:09.4]} 51. Kh2
{[%clk 0:00:12.8]} 51... Be7 {[%clk 0:02:05.5]} 52. Kh3 {[%clk 0:00:13.6]} 52...
Re2 {[%clk 0:02:06.1]} 53. Rd7 {[%clk 0:00:12.5]} 53... a2 {[%clk 0:02:06.2]}
54. Ra7 {[%clk 0:00:13.5]} 54... Bf6 {[%clk 0:02:07.6]} 55. Bg5 {[%clk
0:00:05.1]} 55... a1=Q {[%clk 0:01:59.9]} 56. Rf7 {[%clk 0:00:05.1]} 56... Re6
{[%clk 0:01:59.3]} 57. Kg4 {[%clk 0:00:05.3]} 57... Kg2 {[%clk 0:01:57]} 58. Kf5
{[%clk 0:00:05.5]} 58... Qe5+ {[%clk 0:01:57.2]} 59. Kg6 {[%clk 0:00:06.4]}
59... Bxg5+ {[%clk 0:01:58.7]} 0-1

[Event "*** Titled Tuesday 3|2 Blitz"]
[Site "Chess.com"]
[Date "2017.03.07"]
[Round "11"]
[White "PelinGorki"]
[Black "VMikhalevski"]
[Result "0-1"]
[WhiteElo "2425"]
[BlackElo "2549"]
[TimeControl "180+2"]
[EndTime "15:38:15 PST"]
[Termination "VMikhalevski won by resignation"]

1. e4 {[%clk 0:03:02]} 1... e5 {[%clk 0:02:57.6]} 2. Nc3 {[%clk 0:03:03.2]} 2...
Nf6 {[%clk 0:02:57.2]} 3. Bc4 {[%clk 0:03:04.6]} 3... Bc5 {[%clk 0:02:56.3]} 4.
d3 {[%clk 0:03:05.9]} 4... d6 {[%clk 0:02:56.9]} 5. f4 {[%clk 0:03:07.4]} 5...
Nc6 {[%clk 0:02:57.3]} 6. Nf3 {[%clk 0:03:08.9]} 6... Bg4 {[%clk 0:02:57.9]} 7.
Na4 {[%clk 0:03:09.8]} 7... Bb6 {[%clk 0:02:56]} 8. Nxb6 {[%clk 0:03:10.5]} 8...
axb6 {[%clk 0:02:57.2]} 9. c3 {[%clk 0:03:07.9]} 9... O-O {[%clk 0:02:52.6]} 10.
a3 {[%clk 0:03:02.8]} 10... exf4 {[%clk 0:02:52.5]} 11. Bxf4 {[%clk 0:03:02.9]}
11... d5 {[%clk 0:02:53.8]} 12. exd5 {[%clk 0:03:04.3]} 12... Re8+ {[%clk
0:02:50.9]} 13. Kf2 {[%clk 0:03:04.9]} 13... Nxd5 {[%clk 0:02:51.4]} 14. Bg3
{[%clk 0:03:05.8]} 14... Ne3 {[%clk 0:02:46]} 15. Qb3 {[%clk 0:02:57.6]} 15...
Qf6 {[%clk 0:02:35.9]} 16. Rhe1 {[%clk 0:02:53.8]} 16... Nxg2 {[%clk 0:02:34.7]}
17. Kxg2 {[%clk 0:02:47.2]} 17... Qxf3+ {[%clk 0:02:33.8]} 18. Kg1 {[%clk
0:02:47.9]} 18... Na5 {[%clk 0:02:19.6]} 19. Qb5 {[%clk 0:02:32.2]} 19... c6
{[%clk 0:02:14.4]} 20. Qg5 {[%clk 0:02:27]} 20... Nxc4 {[%clk 0:02:05.8]} 21.
dxc4 {[%clk 0:02:28.9]} 21... Bh3 {[%clk 0:01:56.2]} 22. Bc7 {[%clk 0:02:29.6]}
22... Re2 {[%clk 0:01:48.6]} 23. Rxe2 {[%clk 0:02:22.2]} 23... Qxe2 {[%clk
0:01:49.1]} 24. Qg3 {[%clk 0:02:19.9]} 24... Bf5 {[%clk 0:01:40.6]} 25. Re1
{[%clk 0:02:11.3]} 25... Qxb2 {[%clk 0:01:32.1]} 26. Bb8 {[%clk 0:02:05.2]}
26... f6 {[%clk 0:00:47.8]} 27. Qc7 {[%clk 0:01:21.3]} 27... h5 {[%clk
0:00:37.5]} 28. Qf4 {[%clk 0:01:12.1]} 28... Bg6 {[%clk 0:00:27.4]} 29. Qg3
{[%clk 0:01:01.9]} 29... Kh7 {[%clk 0:00:26.4]} 30. Bd6 {[%clk 0:00:53.8]} 30...
Qd2 {[%clk 0:00:22.7]} 31. Bf4 {[%clk 0:00:51.1]} 31... Qc2 {[%clk 0:00:19.2]}
32. Bc1 {[%clk 0:00:43.8]} 32... Rd8 {[%clk 0:00:19.6]} 33. Qf3 {[%clk
0:00:25.8]} 33... Rd3 {[%clk 0:00:19.5]} 34. Qf4 {[%clk 0:00:19.4]} 34... Qxc3
{[%clk 0:00:19.8]} 35. Re7 {[%clk 0:00:19.2]} 35... Rd1+ {[%clk 0:00:20.1]} 36.
Kf2 {[%clk 0:00:20.7]} 36... Qxc1 {[%clk 0:00:19.2]} 37. Qc7 {[%clk 0:00:18.6]}
37... Qd2+ {[%clk 0:00:18.3]} 38. Re2 {[%clk 0:00:14.7]} 38... Qd4+ {[%clk
0:00:19]} 39. Re3 {[%clk 0:00:13.5]} 39... Be4 {[%clk 0:00:17.6]} 40. Qf4 {[%clk
0:00:13.3]} 40... Rd2+ {[%clk 0:00:16.8]} 41. Kg3 {[%clk 0:00:14.6]} 41... Rd3
{[%clk 0:00:11.5]} 0-1

[Event "*** Titled Tuesday 3|2 Blitz"]
[Site "Chess.com"]
[Date "2017.03.07"]
[Round "11"]
[White "littleozy"]
[Black "Abrito99"]
[Result "0-1"]
[WhiteElo "2307"]
[BlackElo "2405"]
[TimeControl "180+2"]
[EndTime "15:38:21 PST"]
[Termination "Abrito99 won by resignation"]

1. d4 {[%clk 0:03:02]} 1... Nf6 {[%clk 0:02:57.4]} 2. c4 {[%clk 0:03:03]} 2...
g6 {[%clk 0:02:56.3]} 3. Nc3 {[%clk 0:03:04]} 3... Bg7 {[%clk 0:02:57.5]} 4. e4
{[%clk 0:03:05.1]} 4... d6 {[%clk 0:02:59]} 5. Bd3 {[%clk 0:03:06.5]} 5... O-O
{[%clk 0:03:00.6]} 6. Nge2 {[%clk 0:03:06.5]} 6... e5 {[%clk 0:02:54.7]} 7. d5
{[%clk 0:03:06.7]} 7... a5 {[%clk 0:02:53.2]} 8. O-O {[%clk 0:03:07.2]} 8...
Nbd7 {[%clk 0:02:54.3]} 9. Bc2 {[%clk 0:03:07]} 9... Nc5 {[%clk 0:02:55.4]} 10.
Be3 {[%clk 0:02:57.7]} 10... Bd7 {[%clk 0:02:52.3]} 11. Kh1 {[%clk 0:02:54.5]}
11... Ng4 {[%clk 0:02:51]} 12. Bxc5 {[%clk 0:02:49.2]} 12... Qh4 {[%clk
0:02:39.7]} 13. h3 {[%clk 0:02:38.1]} 13... dxc5 {[%clk 0:02:39]} 14. Kg1 {[%clk
0:02:30.7]} 14... Nf6 {[%clk 0:02:37.3]} 15. Qd3 {[%clk 0:02:31.2]} 15... Nh5
{[%clk 0:02:34.1]} 16. Rad1 {[%clk 0:02:15.6]} 16... Rad8 {[%clk 0:02:27.4]} 17.
Ba4 {[%clk 0:02:08.3]} 17... Bc8 {[%clk 0:02:27.2]} 18. Qe3 {[%clk 0:02:05.6]}
18... Nf4 {[%clk 0:01:44]} 19. Qf3 {[%clk 0:01:49.4]} 19... f5 {[%clk
0:01:23.3]} 20. Nxf4 {[%clk 0:01:30.4]} 20... fxe4 {[%clk 0:01:12.7]} 21. Nxg6
{[%clk 0:01:10.2]} 21... hxg6 {[%clk 0:01:11.1]} 22. Qxe4 {[%clk 0:01:11.3]}
22... Rf4 {[%clk 0:01:10.3]} 23. Qe3 {[%clk 0:01:01.5]} 23... Rxc4 {[%clk
0:01:01.7]} 24. Bb3 {[%clk 0:00:59.5]} 24... Rd4 {[%clk 0:00:58.4]} 25. Ne2
{[%clk 0:00:50.1]} 25... Rxd1 {[%clk 0:00:49.9]} 26. Rxd1 {[%clk 0:00:50.6]}
26... c4 {[%clk 0:00:51.4]} 27. Bc2 {[%clk 0:00:47.1]} 27... Bf5 {[%clk
0:00:47.8]} 28. Bxf5 {[%clk 0:00:43.5]} 28... gxf5 {[%clk 0:00:49.3]} 29. Qc5
{[%clk 0:00:42.5]} 29... Rd7 {[%clk 0:00:44.1]} 30. Ng3 {[%clk 0:00:39.6]} 30...
f4 {[%clk 0:00:22.6]} 31. Qxc4 {[%clk 0:00:22.8]} 31... Kh8 {[%clk 0:00:20.5]}
32. Nf5 {[%clk 0:00:22.2]} 32... Qh5 {[%clk 0:00:21.3]} 33. Nxg7 {[%clk
0:00:22.7]} 33... Qxd1+ {[%clk 0:00:21.8]} 34. Kh2 {[%clk 0:00:23.2]} 34... Rxg7
{[%clk 0:00:23.4]} 35. Qe4 {[%clk 0:00:24]} 35... Qh5 {[%clk 0:00:22.2]} 36. d6
{[%clk 0:00:24.5]} 36... Qg6 {[%clk 0:00:19.6]} 37. Qd5 {[%clk 0:00:22.1]} 37...
Qxd6 {[%clk 0:00:18.1]} 38. Qxb7 {[%clk 0:00:23.3]} 38... Qg6 {[%clk 0:00:14]}
39. Qa8+ {[%clk 0:00:23.2]} 39... Kh7 {[%clk 0:00:14.6]} 40. b3 {[%clk
0:00:23.6]} 40... e4 {[%clk 0:00:15.3]} 41. g4 {[%clk 0:00:22.9]} 41... fxg3+
{[%clk 0:00:15.9]} 0-1

[Event "*** Titled Tuesday 3|2 Blitz"]
[Site "Chess.com"]
[Date "2017.03.07"]
[Round "11"]
[White "mwpchess"]
[Black "aa175"]
[Result "1-0"]
[WhiteElo "2371"]
[BlackElo "1868"]
[TimeControl "180+2"]
[EndTime "15:38:27 PST"]
[Termination "mwpchess won by checkmate"]

1. e4 {[%clk 0:03:02]} 1... e5 {[%clk 0:02:57.9]} 2. Nf3 {[%clk 0:03:00.5]} 2...
Nc6 {[%clk 0:02:58.6]} 3. d4 {[%clk 0:02:57.8]} 3... exd4 {[%clk 0:02:59.1]} 4.
Nxd4 {[%clk 0:02:58]} 4... Nxd4 {[%clk 0:02:54]} 5. Qxd4 {[%clk 0:02:57.8]} 5...
d6 {[%clk 0:02:51.5]} 6. Nc3 {[%clk 0:02:56.2]} 6... Nf6 {[%clk 0:02:52]} 7. Bc4
{[%clk 0:02:55]} 7... Be7 {[%clk 0:02:52.5]} 8. O-O {[%clk 0:02:54.8]} 8... O-O
{[%clk 0:02:51.6]} 9. a4 {[%clk 0:02:52.2]} 9... Nd7 {[%clk 0:02:43.8]} 10. Bf4
{[%clk 0:02:51]} 10... Bf6 {[%clk 0:02:38.3]} 11. Qd2 {[%clk 0:02:50.7]} 11...
Nc5 {[%clk 0:02:23.9]} 12. Rae1 {[%clk 0:02:50.1]} 12... Be6 {[%clk 0:02:22.5]}
13. Bxe6 {[%clk 0:02:39.4]} 13... Nxe6 {[%clk 0:02:24.4]} 14. Bg3 {[%clk
0:02:38.6]} 14... Nc5 {[%clk 0:02:04.4]} 15. b3 {[%clk 0:02:38.3]} 15... Re8
{[%clk 0:02:03.1]} 16. f3 {[%clk 0:02:38.1]} 16... c6 {[%clk 0:01:58.2]} 17. Rd1
{[%clk 0:02:33]} 17... Qb6 {[%clk 0:01:54.7]} 18. Bf2 {[%clk 0:02:30.5]} 18...
Rad8 {[%clk 0:01:48.7]} 19. Kh1 {[%clk 0:02:27.8]} 19... Qb4 {[%clk 0:01:40.9]}
20. Ne2 {[%clk 0:02:24.1]} 20... Qxd2 {[%clk 0:01:32]} 21. Rxd2 {[%clk
0:02:24.3]} 21... b6 {[%clk 0:01:17.3]} 22. Rfd1 {[%clk 0:02:23.2]} 22... Nb7
{[%clk 0:01:16.1]} 23. Nd4 {[%clk 0:02:16.3]} 23... Rc8 {[%clk 0:01:07.8]} 24.
Nf5 {[%clk 0:02:14.9]} 24... d5 {[%clk 0:01:00.7]} 25. exd5 {[%clk 0:02:08.3]}
25... cxd5 {[%clk 0:01:00.7]} 26. Bd4 {[%clk 0:02:06.2]} 26... Bxd4 {[%clk
0:00:58.2]} 27. Nxd4 {[%clk 0:02:05.6]} 27... Re5 {[%clk 0:00:39.3]} 28. Kg1
{[%clk 0:02:05.3]} 28... Rc5 {[%clk 0:00:27.8]} 29. Kf2 {[%clk 0:02:02.3]} 29...
f6 {[%clk 0:00:23.5]} 30. Ne2 {[%clk 0:02:00.7]} 30... Re7 {[%clk 0:00:14.8]}
31. c3 {[%clk 0:01:57.7]} 31... Rd7 {[%clk 0:00:15.3]} 32. Rd3 {[%clk
0:01:55.4]} 32... Kf7 {[%clk 0:00:11.8]} 33. Nf4 {[%clk 0:01:54.4]} 33... g5
{[%clk 0:00:03.7]} 34. Nxd5 {[%clk 0:01:52]} 34... Rd6 {[%clk 0:00:03.1]} 35.
Ne3 {[%clk 0:01:49.6]} 35... Rxc3 {[%clk 0:00:02.1]} 36. Rxd6 {[%clk 0:01:47.9]}
36... Nxd6 {[%clk 0:00:03.6]} 37. Rxd6 {[%clk 0:01:47.3]} 37... Rxb3 {[%clk
0:00:05.5]} 38. Rd7+ {[%clk 0:01:46.9]} 38... Kg6 {[%clk 0:00:07.4]} 39. Rxa7
{[%clk 0:01:45.7]} 39... Ra3 {[%clk 0:00:09.3]} 40. Ra6 {[%clk 0:01:43.9]} 40...
Rb3 {[%clk 0:00:08]} 41. Nd5 {[%clk 0:01:40.6]} 41... Rb2+ {[%clk 0:00:08.4]}
42. Kf1 {[%clk 0:01:40]} 42... Rb1+ {[%clk 0:00:09.2]} 43. Kf2 {[%clk
0:01:38.2]} 43... Rb2+ {[%clk 0:00:09.2]} 44. Kg3 {[%clk 0:01:36.3]} 44... b5
{[%clk 0:00:08.7]} 45. axb5 {[%clk 0:01:33.6]} 45... Rxb5 {[%clk 0:00:09.5]} 46.
Rxf6+ {[%clk 0:01:32.8]} 46... Kg7 {[%clk 0:00:09.8]} 47. Rd6 {[%clk 0:01:32.4]}
47... h5 {[%clk 0:00:09.6]} 48. h4 {[%clk 0:01:31.5]} 48... gxh4+ {[%clk
0:00:08.6]} 49. Kxh4 {[%clk 0:01:31.5]} 49... Rb2 {[%clk 0:00:09.3]} 50. Nf4
{[%clk 0:01:28.2]} 50... Rb4 {[%clk 0:00:08.3]} 51. Kg3 {[%clk 0:01:26.3]} 51...
Rb5 {[%clk 0:00:06.2]} 52. Rd5 {[%clk 0:01:25.1]} 52... h4+ {[%clk 0:00:02]} 53.
Kxh4 {[%clk 0:01:23.5]} 53... Rb4 {[%clk 0:00:03.6]} 54. Kg5 {[%clk 0:01:23.3]}
54... Rb2 {[%clk 0:00:03.8]} 55. g4 {[%clk 0:01:21.9]} 55... Kg8 {[%clk
0:00:05.1]} 56. Rd6 {[%clk 0:01:19.9]} 56... Rb5+ {[%clk 0:00:05.8]} 57. Kg6
{[%clk 0:01:17.4]} 57... Rb4 {[%clk 0:00:07.7]} 58. Rd8# {[%clk 0:01:14.4]} 1-0

[Event "*** Titled Tuesday 3|2 Blitz"]
[Site "Chess.com"]
[Date "2017.03.07"]
[Round "11"]
[White "RoelandPruijssers"]
[Black "morphy1984"]
[Result "1-0"]
[WhiteElo "2511"]
[BlackElo "2474"]
[TimeControl "180+2"]
[EndTime "15:38:30 PST"]
[Termination "RoelandPruijssers won by resignation"]

1. e4 {[%clk 0:02:35.8]} 1... e5 {[%clk 0:02:59]} 2. Nf3 {[%clk 0:02:36.9]} 2...
Nc6 {[%clk 0:02:59.2]} 3. Bb5 {[%clk 0:02:37.2]} 3... f5 {[%clk 0:02:59.5]} 4.
d3 {[%clk 0:02:33.2]} 4... fxe4 {[%clk 0:02:59.5]} 5. dxe4 {[%clk 0:02:34.3]}
5... Nf6 {[%clk 0:03:00.2]} 6. O-O {[%clk 0:02:32.5]} 6... Bc5 {[%clk 0:03:00]}
7. Bxc6 {[%clk 0:02:30.9]} 7... bxc6 {[%clk 0:03:00.2]} 8. Nxe5 {[%clk
0:02:26.7]} 8... O-O {[%clk 0:02:59.6]} 9. Nc3 {[%clk 0:02:22.4]} 9... d6 {[%clk
0:02:51.7]} 10. Nd3 {[%clk 0:02:22.5]} 10... Bb6 {[%clk 0:02:50]} 11. Qe1 {[%clk
0:01:48.2]} 11... Re8 {[%clk 0:01:31.1]} 12. Bg5 {[%clk 0:01:37.3]} 12... h6
{[%clk 0:01:28.1]} 13. Bh4 {[%clk 0:01:32.9]} 13... Qe7 {[%clk 0:01:13.1]} 14.
Kh1 {[%clk 0:01:12.8]} 14... Ba6 {[%clk 0:01:05.8]} 15. f3 {[%clk 0:01:09.2]}
15... Qf7 {[%clk 0:01:04.8]} 16. Bf2 {[%clk 0:01:08.3]} 16... Nh5 {[%clk
0:00:58.5]} 17. Bxb6 {[%clk 0:00:58.1]} 17... axb6 {[%clk 0:00:57.6]} 18. Qd2
{[%clk 0:00:51.4]} 18... d5 {[%clk 0:00:37.2]} 19. exd5 {[%clk 0:00:42.8]} 19...
cxd5 {[%clk 0:00:37.8]} 20. Rfe1 {[%clk 0:00:42.1]} 20... Bxd3 {[%clk
0:00:29.4]} 21. Qxd3 {[%clk 0:00:40.9]} 21... c6 {[%clk 0:00:27.5]} 22. Qd4
{[%clk 0:00:38.7]} 22... Rab8 {[%clk 0:00:20.5]} 23. b4 {[%clk 0:00:24.2]} 23...
Nf4 {[%clk 0:00:20.4]} 24. Rxe8+ {[%clk 0:00:22.1]} 24... Rxe8 {[%clk
0:00:20.6]} 25. Qxb6 {[%clk 0:00:21.4]} 25... Qf6 {[%clk 0:00:21.5]} 26. Qc5
{[%clk 0:00:23]} 26... Re2 {[%clk 0:00:16.1]} 27. Rg1 {[%clk 0:00:19.6]} 27...
Rxc2 {[%clk 0:00:15.8]} 28. Nxd5 {[%clk 0:00:14.8]} 28... Qb2 {[%clk 0:00:09.5]}
29. Ne7+ {[%clk 0:00:10.9]} 29... Kf7 {[%clk 0:00:10.3]} 30. Qf5+ {[%clk
0:00:10.6]} 30... Kxe7 {[%clk 0:00:10.4]} 31. Qxf4 {[%clk 0:00:11]} 31... Qxa2
{[%clk 0:00:10.8]} 32. Re1+ {[%clk 0:00:11.5]} 32... Re2 {[%clk 0:00:10.3]} 33.
Rd1 {[%clk 0:00:12.5]} 33... Qe6 {[%clk 0:00:07.8]} 34. Qc7+ {[%clk 0:00:06.6]}
34... Kf6 {[%clk 0:00:07.2]} 35. Qd8+ {[%clk 0:00:07.1]} 35... Kg6 {[%clk
0:00:06.8]} 36. Qd3+ {[%clk 0:00:07.1]} 36... Kf6 {[%clk 0:00:06.9]} 37. Qc3+
{[%clk 0:00:06.7]} 37... Kf7 {[%clk 0:00:07.6]} 38. h3 {[%clk 0:00:07.3]} 38...
Re3 {[%clk 0:00:04.9]} 39. Qd2 {[%clk 0:00:05.9]} 39... Rb3 {[%clk 0:00:03.1]}
40. Qf4+ {[%clk 0:00:06.3]} 40... Kg6 {[%clk 0:00:03]} 41. Rd6 {[%clk 0:00:05]}
1-0

[Event "*** Titled Tuesday 3|2 Blitz"]
[Site "Chess.com"]
[Date "2017.03.07"]
[Round "11"]
[White "MattyDPerrine"]
[Black "Makalexa"]
[Result "1-0"]
[WhiteElo "2230"]
[BlackElo "2149"]
[TimeControl "180+2"]
[EndTime "15:38:31 PST"]
[Termination "MattyDPerrine won by resignation"]

1. Nf3 {[%clk 0:03:02]} 1... Nf6 {[%clk 0:02:59.6]} 2. g3 {[%clk 0:03:02.8]}
2... g6 {[%clk 0:02:59.8]} 3. Bg2 {[%clk 0:03:03.9]} 3... Bg7 {[%clk 0:03:01.4]}
4. O-O {[%clk 0:03:05.5]} 4... O-O {[%clk 0:03:02.1]} 5. d4 {[%clk 0:03:06.5]}
5... c5 {[%clk 0:03:00.1]} 6. c4 {[%clk 0:03:05.8]} 6... Nc6 {[%clk 0:02:59]} 7.
d5 {[%clk 0:03:00.9]} 7... Na5 {[%clk 0:02:58.4]} 8. Qa4 {[%clk 0:02:51.2]} 8...
d6 {[%clk 0:02:55.2]} 9. Bd2 {[%clk 0:02:51.8]} 9... b6 {[%clk 0:02:54.9]} 10.
Bxa5 {[%clk 0:02:48.6]} 10... bxa5 {[%clk 0:02:55.6]} 11. Nc3 {[%clk 0:02:26.8]}
11... Bd7 {[%clk 0:02:55.8]} 12. Qa3 {[%clk 0:02:27.1]} 12... Rb8 {[%clk
0:02:54.2]} 13. Nd2 {[%clk 0:02:27.1]} 13... Qb6 {[%clk 0:02:48.7]} 14. Nb3
{[%clk 0:02:07.6]} 14... a4 {[%clk 0:02:20.6]} 15. Nxa4 {[%clk 0:01:58]} 15...
Qb4 {[%clk 0:02:18.2]} 16. Nc3 {[%clk 0:01:41.7]} 16... Qxa3 {[%clk 0:01:57.2]}
17. bxa3 {[%clk 0:01:42.5]} 17... Ng4 {[%clk 0:01:56.1]} 18. Rac1 {[%clk
0:01:29.2]} 18... Ne5 {[%clk 0:01:51.2]} 19. Ne4 {[%clk 0:01:24.4]} 19... Ba4
{[%clk 0:01:38.6]} 20. Ned2 {[%clk 0:01:24.4]} 20... Bh6 {[%clk 0:01:29.6]} 21.
f4 {[%clk 0:01:07.3]} 21... Ng4 {[%clk 0:01:29.4]} 22. Rf3 {[%clk 0:01:04.6]}
22... Bg7 {[%clk 0:01:24.5]} 23. h3 {[%clk 0:00:58.5]} 23... Nf6 {[%clk
0:01:25.1]} 24. Re3 {[%clk 0:00:31.6]} 24... Rfe8 {[%clk 0:01:17.9]} 25. Rd3
{[%clk 0:00:28.1]} 25... Nd7 {[%clk 0:01:14.5]} 26. Rc2 {[%clk 0:00:27.8]} 26...
Nb6 {[%clk 0:01:11.4]} 27. e4 {[%clk 0:00:22.7]} 27... h5 {[%clk 0:01:02.5]} 28.
h4 {[%clk 0:00:20.1]} 28... Nd7 {[%clk 0:01:02.4]} 29. Kf2 {[%clk 0:00:18]}
29... Nf6 {[%clk 0:01:02.6]} 30. Ke2 {[%clk 0:00:18.5]} 30... Ng4 {[%clk
0:01:03.3]} 31. Nf3 {[%clk 0:00:18.8]} 31... Rb6 {[%clk 0:00:57]} 32. Bh3 {[%clk
0:00:15.6]} 32... Reb8 {[%clk 0:00:56.5]} 33. Nfd2 {[%clk 0:00:16.8]} 33... Nf6
{[%clk 0:00:55.5]} 34. e5 {[%clk 0:00:15.4]} 34... dxe5 {[%clk 0:00:55.5]} 35.
fxe5 {[%clk 0:00:17.3]} 35... Nd7 {[%clk 0:00:56.8]} 36. Bxd7 {[%clk 0:00:17.4]}
36... Bxe5 {[%clk 0:00:55.3]} 37. Bxa4 {[%clk 0:00:17.8]} 37... Rf6 {[%clk
0:00:48]} 38. Ne4 {[%clk 0:00:16.7]} 38... Ra6 {[%clk 0:00:46.7]} 39. Nbxc5
{[%clk 0:00:15.8]} 39... Ra5 {[%clk 0:00:43.5]} 40. Bb5 {[%clk 0:00:16.9]} 40...
Rc8 {[%clk 0:00:40]} 41. Nd7 {[%clk 0:00:17.1]} 41... Bd6 {[%clk 0:00:37.4]} 42.
a4 {[%clk 0:00:17]} 42... a6 {[%clk 0:00:36.5]} 43. Bc6 {[%clk 0:00:18]} 43...
Kg7 {[%clk 0:00:34.1]} 44. c5 {[%clk 0:00:18]} 44... Bc7 {[%clk 0:00:31.7]} 45.
Nb6 {[%clk 0:00:16.7]} 45... Bxb6 {[%clk 0:00:31.4]} 46. cxb6 {[%clk 0:00:18.6]}
46... f5 {[%clk 0:00:27.2]} 47. Nc5 {[%clk 0:00:18.5]} 47... Kf6 {[%clk
0:00:25.4]} 48. b7 {[%clk 0:00:18.9]} 48... Rb8 {[%clk 0:00:25.8]} 49. Nd7+
{[%clk 0:00:20.2]} 49... Kg7 {[%clk 0:00:23.9]} 50. Nxb8 {[%clk 0:00:22.1]} 1-0